[Event "45th FIDE Olympiad 2024"]
[Site "Budapest"]
[Date "2024.09.14"]
[Round "4.12"]
[White "Schadler, Martin"]
[Black "Dennis, Nathan"]
[Result "1-0"]
[ECO "D27"]
[WhiteElo "1891"]
[BlackElo "1828"]
[PlyCount "79"]
[EventDate "2024.09.05"]
[EventType "team-tourn"]
[EventCountry "HUN"]
[WhiteTeam "Liechtenstein"]
[BlackTeam "Bermuda"]
[WhiteTeamCountry "LIE"]
[BlackTeamCountry "BER"]
[TimeControl "40/5400+30:1800+30"]

1. d4 d5 2. c4 dxc4 3. e3 Nf6 4. Bxc4 e6 5. Nf3 a6 6. O-O c5 7. dxc5 Qxd1 8. Rxd1 Bxc5 9. a3 b5 10. Be2 Bb7 11. b4 Be7 12. Bb2 O-O 13. Nbd2 Rc8 14. Nd4 Nbd7 15. Rac1 Nb6 16. Bf3 Bd5 17. Nc6 Bf8 18. Nd4 Bxf3 19. gxf3 Nfd5 20. Ne2 Na4 21. Bd4 a5 22. e4 Ndb6 23. bxa5 Nd7 24. Bb6 Ndxb6 25. axb6 Rxc1 26. Rxc1 Nxb6 27. Nd4 Nc4 28. Nxc4 bxc4 29. Rxc4 Rxa3 30. Rc8 g6 31. Kg2 Kg7 32. Rc2 Be7 33. Rc7 Bf6 34. Nxe6+ Kh6 35. Rxf7 Bb2 36. Rf4 g5 37. Rf5 Bc1 38. Rf6+ Kh5 39. Ng7+ Kh4 40. Rh6# 1-0

[Event "45th FIDE Olympiad 2024"]
[Site "Budapest"]
[Date "2024.09.14"]
[Round "4.13"]
[White "Ding, Liren"]
[Black "Martirosyan, Haik M."]
[Result "1/2-1/2"]
[ECO "D41"]
[WhiteElo "2736"]
[BlackElo "2667"]
[Annotator "TA"]
[PlyCount "62"]
[EventDate "2024.09.05"]
[EventType "team-tourn"]
[EventCountry "HUN"]
[SourceTitle "playchess.com"]
[Source "ChessBase"]
[SourceQuality "1"]
[WhiteTeam "China"]
[BlackTeam "Armenia"]
[WhiteTeamCountry "CHN"]
[BlackTeamCountry "ARM"]
[TimeControl "40/5400+30:1800+30"]

{[%evp 11,62,29,26,37,35,-5,26,26,46,24,18,8,9,13,9,9,8,8,2,13,9,16,15,3,21,32,43,5,7,0,0,0,0,0,0,0,0,0,0,0,-2,0,-4,-5,0,0,0,-6,-6,-6,0,-11,0]} 1. d4 {[%emt 0:00:10]} Nf6 {[%emt 0:00:34]} 2. c4 {[%emt 0:00:05]} e6 {[%emt 0:00:09]} 3. Nf3 {[%emt 0:00:05]} d5 {[%emt 0:00:06]} 4. Nc3 {[%emt 0:00:03]} c5 {[%emt 0:00:34]} 5. cxd5 {[%emt 0:02:15]} cxd4 {[%emt 0:00:09]} 6. Qxd4 {[%emt 0:00:07]} exd5 {[%emt 0:00:05]} 7. e4 {[%emt 0:02:51]} dxe4 {[%emt 0:00:08]} 8. Qxd8+ {[%emt 0:00:01]} Kxd8 {[%emt 0:00:08]} 9. Ng5 {[%emt 0:00:02][%csl LRe4,LRf7] White has an edge.} Be6 {[%emt 0:00:10]} 10. Bb5 {[%emt 0:00:03][%cal Oc1f4][%mdl 1024] White has compensation.} a6 {[%emt 0:02:15]} 11. Ba4 {[%emt 0:00:13][%cal Oc1f4]} (11. Be2 {simplifies} h6 12. Ngxe4 Nxe4 13. Nxe4 Bb4+ 14. Nc3) 11... Nbd7 {[%emt 0:00:06]} (11... h6 {simplifies} 12. Nxe6+ fxe6 13. Bd2 Nbd7) 12. O-O {[%emt 0:00:28][%cal Oc1f4]} (12. Bc2 {simplifies} Nc5 13. Nxe6+ Nxe6 14. Bd2) 12... Nc5 {[%emt 0:04:30]} 13. Rd1+ {[%emt 0:08:21]} (13. Bc2 {simplifies} Rc8 14. Re1 Bd6 15. Nxe6+ Nxe6 16. Bd2) 13... Ke7 {[%emt 0:00:36]} 14. Bc2 {[%emt 0:00:16][%cal Rg5e4]} Rc8 {[%emt 0:02:01]} 15. Be3 {[%emt 0:03:18][%cal Oa1c1]} ({Don't play} 15. Ngxe4 Ncxe4 16. Bxe4 Rxc3 17. Bxb7 Rc7 18. Bxa6 Nd5 $17) 15... h6 {[%emt 0:02:05]} 16. Bxc5+ {[%emt 0:03:37]} (16. Ngxe4 Ncxe4 17. Bxe4 Rxc3 18. Bxb7 Rc2 19. Bxa6 Rxb2 $19) 16... Rxc5 {[%emt 0:00:08]} 17. Ngxe4 {[%emt 0:00:01]} Nxe4 {[%emt 0:19:17]} 18. Bxe4 {[%emt 0:00:50]} b5 {[%emt 0:02:54]} 19. Rac1 {[%emt 0:11:30]} f5 {[%emt 0:02:36] The position is equal.} 20. Bd5 {[%emt 0:01:16]} Bxd5 $1 {[%emt 0:04:48]} 21. Nxd5+ {[%emt 0:09:02]} Kf7 {[%emt 0:01:26]} 22. Nc7 {[%emt 0:03:19]} Rxc1 {[%emt 0:02:00]} 23. Rxc1 $11 {[%emt 0:00:02][%mdl 4096] Endgame. KRB-KRN} Be7 {[%emt 0:05:28] And now ...Rc8 would win.} 24. Nxa6 {[%emt 0:00:43]} Rd8 {[%emt 0:08:15]} 25. g3 {[%emt 0:00:32]} Rd2 {[%emt 0:00:36]} 26. b4 {[%emt 0:00:03]} Rxa2 {[%emt 0:01:46]} 27. Nc7 {[%emt 0:00:03]} Rb2 {[%emt 0:01:41]} 28. Nxb5 {[%emt 0:00:16]} Rxb4 {[%emt 0:00:10]} 29. Nc3 {[%emt 0:00:05]} Rc4 {[%emt 0:01:19] [#] Threatens to win with ...Ba3.} 30. Ne2 {[%emt 0:00:04]} Re4 {[%emt 0:00:30]} 31. Nc3 {[%emt 0:00:03]} Rc4 {[%emt 0:00:06] Weighted Error Value: White=0.04 (flawless) /Black=0.02 (flawless) .  Inaccurate:     	White=1     	Black=1      OK:         	White=10    	Black=10     Best:        	---       	Black=4      Strong:       	---       	Black=1} 1/2-1/2

[Event "45th FIDE Olympiad 2024"]
[Site "Budapest"]
[Date "2024.09.14"]
[Round "4.13"]
[White "Almedina Ortiz, Edgardo J."]
[Black "Than, Min Hlaing"]
[Result "1-0"]
[ECO "B90"]
[WhiteElo "2196"]
[BlackElo "2121"]
[PlyCount "65"]
[EventDate "2024.09.05"]
[EventType "team-tourn"]
[EventCountry "HUN"]
[WhiteTeam "Puerto Rico"]
[BlackTeam "Myanmar"]
[WhiteTeamCountry "PUR"]
[BlackTeamCountry "MYA"]
[TimeControl "40/5400+30:1800+30"]

1. e4 c5 2. Nf3 d6 3. d4 cxd4 4. Nxd4 Nf6 5. Nc3 a6 6. Be3 e5 7. Nb3 Be7 8. f3 O-O 9. Qd2 Be6 10. O-O-O Nbd7 11. g4 b5 12. Rg1 Nb6 13. g5 Nfd7 14. Na5 b4 15. Nd5 Nxd5 16. exd5 Qxa5 17. dxe6 fxe6 18. Kb1 g6 19. Bh3 Kf7 20. Qg2 Rfd8 21. Bxe6+ Kg7 22. Qh3 Nc5 23. Bd5 Ra7 24. Rg4 Bf8 25. Rf4 Kh8 26. Rf6 Rg7 27. f4 Nd7 28. f5 gxf5 29. Rxf5 Qb5 30. Bf7 Qe2 31. Rg1 Rc8 32. Rf2 Qb5 33. g6 1-0

[Event "45th FIDE Olympiad 2024"]
[Site "Budapest"]
[Date "2024.09.14"]
[Round "4.14"]
[White "Sargsyan, Shant"]
[Black "Wei, Yi"]
[Result "1/2-1/2"]
[ECO "E05"]
[WhiteElo "2649"]
[BlackElo "2762"]
[Annotator "TA"]
[PlyCount "71"]
[EventDate "2024.09.05"]
[EventType "team-tourn"]
[EventCountry "HUN"]
[SourceTitle "playchess.com"]
[Source "ChessBase"]
[SourceQuality "1"]
[WhiteTeam "Armenia"]
[BlackTeam "China"]
[WhiteTeamCountry "ARM"]
[BlackTeamCountry "CHN"]
[TimeControl "40/5400+30:1800+30"]

{[%evp 21,71,8,8,5,14,9,4,4,4,0,6,8,9,3,5,0,0,0,5,0,0,0,-2,-1,0,0,0,0,17,0,6,0,0,0,0,0,0,0,0,0,0,0,0,0,0,0,0,0,0,0,0,0]} 1. d4 {[%emt 0:01:05]} Nf6 {[%emt 0:00:12]} 2. c4 {[%emt 0:00:16]} e6 {[%emt 0:00:13]} 3. Nf3 {[%emt 0:00:19]} d5 {[%emt 0:00:12]} 4. g3 {[%emt 0:00:11]} Be7 {[%emt 0:00:33]} 5. Bg2 {[%emt 0:00:25]} O-O {[%emt 0:00:12]} 6. O-O {[%emt 0:00:03]} dxc4 {[%emt 0:00:09]} 7. Qc2 {[%emt 0:00:22]} a6 {[%emt 0:00:08]} 8. a4 {[%emt 0:00:10]} Bd7 {[%emt 0:00:13]} 9. Qxc4 {[%emt 0:00:25]} Bc6 {[%emt 0:00:18]} 10. Bg5 {[%emt 0:00:12]} Nbd7 {[%emt 0:03:06]} 11. Nc3 {[%emt 0:00:09]} h6 {[%emt 0:00:23] The position is equal.} 12. Bxf6 {[%emt 0:00:09]} Nxf6 {[%emt 0:00:06]} 13. a5 {[%emt 0:00:48]} Bd5 {[%emt 0:06:24] This pair of bishops is nice.} 14. Qd3 {[%emt 0:01:01]} Bxf3 {[%emt 0:00:21]} 15. Bxf3 {[%emt 0:00:10]} c6 {[%emt 0:00:08]} 16. Qc4 {[%emt 0:00:03] Repels Bb4} Bd6 {[%emt 0:03:08]} 17. Rfd1 {[%emt 0:11:09]} Qe7 {[%emt 0:01:01]} 18. e3 {[%emt 0:00:25]} Rfd8 {[%emt 0:03:24][%cal Bf8d8,Bd8d7,Bd7c7][%mdl 32]} 19. Na4 {[%emt 0:07:11]} Rab8 {[%emt 0:07:38]} 20. Qb3 {[%emt 0:07:40]} e5 {[%emt 0:06:11]} 21. Nc3 {[%emt 0:03:02]} exd4 {[%emt 0:05:14]} 22. exd4 {[%emt 0:00:21]} Qc7 {[%emt 0:14:16]} 23. Qc4 {[%emt 0:04:05]} Rd7 {[%emt 0:09:12]} 24. b4 {[%emt 0:03:56]} Rbd8 {[%emt 0:02:41]} 25. Kg2 {[%emt 0:02:05]} Bf8 {[%emt 0:02:22]} 26. d5 {[%emt 0:06:51]} cxd5 {[%emt 0:00:10]} 27. Qxc7 {[%emt 0:00:04]} Rxc7 {[%emt 0:00:04]} 28. Nxd5 {[%emt 0:00:05]} Nxd5 {[%emt 0:00:04]} 29. Rxd5 {[%emt 0:00:10]} Rxd5 {[%emt 0:01:15]} 30. Bxd5 {[%emt 0:00:03]} Bxb4 $11 {[%emt 0:01:55][%mdl 4096] Endgame. KRB-KRB} 31. Rb1 {[%emt 0:00:07]} Rd7 {[%emt 0:01:11]} 32. Bf3 {[%emt 0:00:47]} Bxa5 {[%emt 0:00:05]} 33. Bxb7 {[%emt 0:00:13]} Rd6 {[%emt 0:00:05]} 34. Ra1 {[%emt 0:00:08]} Bc3 {[%emt 0:00:03]} 35. Rxa6 {[%emt 0:00:06]} Rxa6 {[%emt 0:00:04]} 36. Bxa6 {[%emt 0:00:05] An uneventful encounter.   Weighted Error Value: White=0.02 (flawless) /Black=0.01 (flawless) .  OK:         	White=10    	Black=11     Best:        	White=1     	---} 1/2-1/2

[Event "45th FIDE Olympiad 2024"]
[Site "Budapest"]
[Date "2024.09.14"]
[Round "4.14"]
[White "Kyaw Zay Ya"]
[Black "Zilleruelo Irizarry, Diego"]
[Result "1/2-1/2"]
[ECO "B15"]
[WhiteElo "1818"]
[BlackElo "2041"]
[PlyCount "91"]
[EventDate "2024.09.05"]
[EventType "team-tourn"]
[EventCountry "HUN"]
[WhiteTeam "Myanmar"]
[BlackTeam "Puerto Rico"]
[WhiteTeamCountry "MYA"]
[BlackTeamCountry "PUR"]
[TimeControl "40/5400+30:1800+30"]

1. e4 c6 2. d4 d5 3. Nc3 dxe4 4. Nxe4 Nf6 5. Nxf6+ exf6 6. Nf3 Bd6 7. Bd3 O-O 8. Be3 Nd7 9. Qd2 Re8 10. O-O-O b5 11. d5 c5 12. Bxb5 Rb8 13. c4 Re7 14. Rhe1 a6 15. Bc6 Nb6 16. b3 Bf5 17. Qa5 Qf8 18. Nd2 g5 19. f3 Nd7 20. Bxd7 Rxd7 21. Bg1 Qc8 22. Ne4 Bxe4 23. Rxe4 f5 24. Re2 Qf8 25. Rde1 g4 26. Qc3 Qh6+ 27. Kc2 Rdd8 28. g3 Qg6 29. f4 Bf8 30. Qd3 Qb6 31. Be3 a5 32. Rb1 a4 33. b4 Re8 34. b5 Re4 35. Bf2 Rbe8 36. Rbe1 Qf6 37. Rxe4 fxe4 38. Rxe4 Rxe4 39. Qxe4 Qa1 40. Qe5 Qxa2+ 41. Kd1 Qxf2 42. Qg5+ Bg7 43. Qd8+ Bf8 44. Qg5+ Bg7 45. Qd8+ Bf8 46. Qg5+ 1/2-1/2

[Event "45th FIDE Olympiad 2024"]
[Site "Budapest"]
[Date "2024.09.14"]
[Round "4.15"]
[White "Yu, Yangyi"]
[Black "Sargissian, Gabriel"]
[Result "1-0"]
[ECO "D35"]
[WhiteElo "2703"]
[BlackElo "2646"]
[Annotator "TA"]
[PlyCount "103"]
[EventDate "2024.09.05"]
[EventType "team-tourn"]
[EventCountry "HUN"]
[SourceTitle "playchess.com"]
[Source "ChessBase"]
[SourceQuality "1"]
[WhiteTeam "China"]
[BlackTeam "Armenia"]
[WhiteTeamCountry "CHN"]
[BlackTeamCountry "ARM"]
[TimeControl "40/5400+30:1800+30"]

{[%evp 29,103,12,8,9,6,7,8,8,41,41,42,64,51,14,68,54,56,40,54,57,53,61,61,62,60,56,83,81,87,81,87,86,87,87,99,99,100,92,101,91,143,142,165,161,162,168,177,166,181,181,183,183,175,138,242,177,177,177,222,211,224,231,369,332,371,331,352,360,1173,1202,1085,1031,933,882,708,575]} 1. c4 {[%emt 0:00:05]} e6 {[%emt 0:00:31]} 2. Nc3 {[%emt 0:00:13]} d5 {[%emt 0:00:33]} 3. d4 {[%emt 0:00:11]} Nf6 {[%emt 0:00:20]} 4. cxd5 {[%emt 0:00:31]} exd5 {[%emt 0:00:16]} 5. Bg5 {[%emt 0:00:12]} c6 {[%emt 0:01:46]} 6. e3 {[%emt 0:00:09]} h6 {[%emt 0:00:13]} 7. Bh4 {[%emt 0:00:09]} Be7 {[%emt 0:00:38]} 8. Bd3 {[%emt 0:00:29]} O-O {[%emt 0:00:15]} 9. Bg3 {[%emt 0:00:49] D35: Queen's Gambit Declined: Exchange Variation.} Re8 {[%emt 0:02:19]} 10. h3 {[%emt 0:03:05]} c5 {[%emt 0:00:58]} 11. Nge2 $1 $146 {[%emt 0:02:58][%mdl 8] A top novelty.} ({Predecessor:} 11. Nf3 a6 12. O-O c4 13. Bb1 b5 14. a3 Bb7 15. Ne5 Nbd7 16. f4 Ne4 17. Bxe4 dxe4 {0-1 Keymer,V (2721)-Le,Q (2731) Biel GM1 Blitz 57th 2024 (2)}) 11... Nc6 {[%emt 0:03:13]} 12. O-O {[%emt 0:00:11]} a6 {[%emt 0:02:17]} 13. dxc5 {[%emt 0:05:32]} Bxc5 {[%emt 0:00:19]} 14. Bh4 {[%emt 0:00:11]} g5 {[%emt 0:04:17]} 15. Bg3 {[%emt 0:00:50]} d4 {[%emt 0:02:09]} 16. exd4 {[%emt 0:00:43]} Nxd4 {[%emt 0:00:26]} 17. Nxd4 {[%emt 0:01:27]} Bxd4 {[%emt 0:04:05]} 18. Qd2 {[%emt 0:01:55]} Bxc3 {[%emt 0:32:20]} (18... Bd7 $5) 19. Qxc3 {[%emt 0:01:07]} Nd5 {[%emt 0:01:58]} 20. Qb3 {[%emt 0:03:58]} Be6 {[%emt 0:03:36]} 21. Qxb7 {[%emt 0:11:05]} Nf4 {[%emt 0:05:01]} (21... Re7 $11 22. Qc6 Nb4 23. Bh7+ Kxh7 24. Qe4+ f5 25. Qxb4 f4) 22. Bxf4 {[%emt 0:24:36]} Qxd3 {[%emt 0:01:57]} 23. Bg3 {[%emt 0:00:41]} Bd5 {[%emt 0:02:01]} 24. Qb4 {[%emt 0:03:44]} Qe4 {[%emt 0:06:01]} 25. Qxe4 {[%emt 0:00:12]} Rxe4 {[%emt 0:00:43]} 26. Rfd1 {[%emt 0:01:51]} Be6 {[%emt 0:00:22]} 27. Rd2 {[%emt 0:00:26]} a5 {[%emt 0:01:02]} 28. f3 {[%emt 0:01:36]} Rc4 {[%emt 0:01:33]} 29. Be5 {[%emt 0:07:22]} Rcc8 {[%emt 0:00:21]} 30. a4 {[%emt 0:05:20]} Rc5 {[%emt 0:11:54]} 31. Bc3 {[%emt 0:00:54]} Kh7 {[%emt 0:00:53]} 32. Rd6 {[%emt 0:01:49]} Kg6 {[%emt 0:01:47]} 33. Kf2 {[%emt 0:01:47]} h5 {[%emt 0:00:30]} 34. g4 {[%emt 0:04:20]} hxg4 {[%emt 0:02:17]} (34... Rc4 $142) 35. hxg4 $16 {[%emt 0:00:10]} Rd5 {[%emt 0:00:07]} 36. Rb6 {[%emt 0:02:54]} Rc5 {[%emt 0:01:35]} 37. Re1 {[%emt 0:01:04]} Rd5 {[%emt 0:01:21]} 38. Re4 {[%emt 0:01:45]} Kh7 {[%emt 0:01:13]} 39. Kg3 {[%emt 0:04:15]} Kg6 {[%emt 0:00:49]} 40. Rc4 {[%emt 0:01:29]} Rad8 {[%emt 0:03:49]} 41. Rcc6 {[%emt 0:31:58]} Ra8 {[%emt 0:09:53]} (41... Kh7 $16 42. Rb7 R8d6 43. Rxd6 Rxd6) 42. Kf2 {[%emt 0:00:00]} Kh7 {[%emt 0:02:19]} 43. Rc7 {[%emt 0:00:00]} Kg6 {[%emt 0:00:12]} 44. Ke3 {[%emt 0:00:00]} Rd1 {[%emt 0:00:14]} 45. Rc5 {[%emt 0:00:00]} Ra1 {[%emt 0:02:22]} (45... Rdd8 {was called for.} 46. Rbb5 (46. Rxa5 Rxa5 47. Bxa5 Ra8 $16) 46... f6 47. Rxa5 Rxa5 48. Rxa5 (48. Bxa5 Ra8 $16) 48... Re8) 46. Re5 $18 {[%emt 0:00:00]} (46. Rxa5 Rxa5 47. Bxa5 Rxa4 $16) 46... Kh6 {[%emt 0:07:09]} 47. Rbb5 {[%emt 0:00:00]} (47. Bxa5 Rxa4 48. b4 Ra3+ 49. Kf2 Rc8 $11) 47... Bd7 {[%emt 0:00:38]} 48. Rbd5 {[%emt 0:00:00]} (48. Rxa5 Rxa5 49. Rxa5 Rxa4 $16) 48... Re8 $2 {[%emt 0:04:15]} (48... Be6 49. Rc5 (49. Rxa5 Rxa4 50. Rxg5 R8xa5 $18) 49... Rg8 50. Rxa5 Rd1) 49. Rxd7 $18 {[%emt 0:00:00]} Rxe5+ {[%emt 0:00:05]} 50. Bxe5 {[%emt 0:00:00]} Re1+ {[%emt 0:00:04]} 51. Kd2 {[%emt 0:00:00]} Rxe5 {[%emt 0:00:04]} 52. Rxf7 {[%emt 0:00:00]} 1-0

[Event "45th FIDE Olympiad 2024"]
[Site "Budapest"]
[Date "2024.09.14"]
[Round "4.15"]
[White "Boggiano Pereira, Miguel A."]
[Black "Zaw Ye Htut"]
[Result "1/2-1/2"]
[ECO "A95"]
[WhiteElo "2015"]
[BlackElo "1815"]
[PlyCount "85"]
[EventDate "2024.09.05"]
[EventType "team-tourn"]
[EventCountry "HUN"]
[WhiteTeam "Puerto Rico"]
[BlackTeam "Myanmar"]
[WhiteTeamCountry "PUR"]
[BlackTeamCountry "MYA"]
[TimeControl "40/5400+30:1800+30"]

1. d4 d5 2. c4 e6 3. Nf3 c6 4. Qc2 f5 5. g3 Nf6 6. Bg2 Be7 7. O-O O-O 8. b3 Ne4 9. Nc3 Nd7 10. Nd2 Bd6 11. e3 Qe7 12. Ne2 b6 13. f3 Nxd2 14. Bxd2 Nf6 15. e4 e5 16. Rae1 exd4 17. exd5 Qc7 18. dxc6 Rd8 19. Nf4 Qxc6 20. Nd3 Bb7 21. Bg5 Rf8 22. Nf4 Bxf4 23. Bxf4 Nh5 24. Be5 Rad8 25. f4 Qd7 26. Bxb7 Qxb7 27. Rd1 Rd7 28. Rxd4 Rxd4 29. Bxd4 Qd7 30. Be5 Rd8 31. Qe2 Nf6 32. Bxf6 gxf6 33. Re1 Kf7 34. Qh5+ Kg7 35. Re3 Qd4 36. Qe2 Qa1+ 37. Kg2 Qc1 38. Rd3 Rxd3 39. Qxd3 Qb2+ 40. Kh3 Qxa2 41. Qd7+ Kg6 42. Qe8+ Kg7 43. Qe7+ 1/2-1/2

[Event "45th FIDE Olympiad 2024"]
[Site "Budapest"]
[Date "2024.09.14"]
[Round "4.16"]
[White "Grigoryan, Karen H."]
[Black "Bu, Xiangzhi"]
[Result "1/2-1/2"]
[ECO "D17"]
[WhiteElo "2569"]
[BlackElo "2693"]
[Annotator "TA"]
[PlyCount "85"]
[EventDate "2024.09.05"]
[EventType "team-tourn"]
[EventCountry "HUN"]
[SourceTitle "playchess.com"]
[Source "ChessBase"]
[SourceQuality "1"]
[WhiteTeam "Armenia"]
[BlackTeam "China"]
[WhiteTeamCountry "ARM"]
[BlackTeamCountry "CHN"]
[TimeControl "40/5400+30:1800+30"]

{[%evp 13,85,0,27,0,14,-2,0,0,0,0,0,0,0,0,0,0,0,0,0,0,0,0,0,0,0,0,0,0,0,0,0,0,0,0,12,0,17,0,0,0,25,20,39,31,33,47,196,201,195,57,58,57,75,70,74,68,117,112,118,41,31,11,115,104,108,61,278,235,175,0,0,0,0,0]} 1. c4 {[%emt 0:00:11]} c6 {[%emt 0:00:32]} 2. d4 {[%emt 0:00:30]} d5 {[%emt 0:00:33]} 3. Nf3 {[%emt 0:00:10]} Nf6 {[%emt 0:00:15]} 4. Nc3 {[%emt 0:00:21]} dxc4 {[%emt 0:00:28]} 5. a4 {[%emt 0:00:13]} Bf5 {[%emt 0:01:19]} 6. Ne5 {[%emt 0:02:26]} e6 {[%emt 0:02:24]} 7. f3 {[%emt 0:07:00]} c5 {[%emt 0:00:58]} (7... Bb4 $5) 8. dxc5 {[%emt 0:06:01]} ({Reject} 8. Nxc4 cxd4 9. e4 Bg6 $17) 8... Nfd7 {[%emt 0:27:43]} 9. Nxd7 {[%emt 0:24:17]} (9. e4 {is more complex.} Nxe5 10. Qxd8+ Kxd8 11. Bf4) 9... Nxd7 {[%emt 0:01:26]} 10. e4 {[%emt 0:02:25]} Bg6 {[%emt 0:00:08]} 11. Be3 {[%emt 0:02:25]} Bxc5 {[%emt 0:06:58]} 12. Bxc5 {[%emt 0:00:21]} Nxc5 {[%emt 0:00:04]} 13. Bxc4 {[%emt 0:01:39]} Qxd1+ {[%emt 0:01:47]} 14. Nxd1 {[%emt 0:05:17]} Ke7 {[%emt 0:14:05]} 15. Ne3 {[%emt 0:02:11]} Rhd8 {[%emt 0:04:40]} 16. Ke2 {[%emt 0:02:25]} a5 {[%emt 0:00:56]} 17. Rhb1 {[%emt 0:10:51]} f6 {[%emt 0:00:14]} 18. b4 {[%emt 0:11:39]} axb4 {[%emt 0:01:05]} 19. Rxb4 {[%emt 0:00:06]} Be8 {[%emt 0:02:54][%cal Ra8a4]} 20. a5 {[%emt 0:02:37]} Rd4 {[%emt 0:15:53][%cal Ob7b5] ...b5! would now be deadly.} 21. Nc2 {[%emt 0:06:11]} Rd6 {[%emt 0:13:19]} 22. Ra2 {[%emt 0:01:53]} g6 {[%emt 0:01:39]} 23. Ke3 {[%emt 0:07:38]} Rad8 {[%emt 0:00:35]} 24. Be2 {[%emt 0:01:00]} e5 {[%emt 0:01:01]} 25. Na3 {[%emt 0:00:15]} Rd4 {[%emt 0:00:38]} 26. Nc4 {[%emt 0:01:25]} Bc6 {[%emt 0:00:36]} 27. Rb6 {[%emt 0:00:43]} Nd7 {[%emt 0:00:53]} 28. Rbb2 {[%emt 0:00:29]} Nc5 {[%emt 0:00:16]} 29. Ra3 {[%emt 0:00:45]} Ra8 {[%emt 0:00:35]} ({Black should try} 29... Kf8 $14) 30. Nb6 $1 $18 {[%emt 0:00:13]} Rad8 {[%emt 0:00:03] [#]} 31. Rc2 {[%emt 0:00:18]} (31. Rc3 $1 $18 {[%cal Rc3c5]} Kd6 32. Bb5) 31... Nd7 $14 {[%emt 0:00:29]} 32. Nxd7 {[%emt 0:00:26]} R4xd7 {[%emt 0:00:59]} 33. a6 {[%emt 0:00:48] aiming for axb7.} Ra8 {[%emt 0:00:20]} 34. Ra5 {[%emt 0:00:49]} Rd6 {[%emt 0:00:42] [#]} (34... g5 $14) 35. Bb5 $1 $16 {[%emt 0:01:22]} Kd8 {[%emt 0:00:43]} ({Don't go for} 35... Bxb5 $2 36. axb7 Rb8 (36... Rd3+ $2 37. Kf2 $18) 37. Rxb5 $18) 36. Bxc6 {[%emt 0:00:35]} (36. h4 $16) 36... bxc6 {[%emt 0:00:04][%mdl 4096] Endgame. KRR-KRR} 37. a7 {[%emt 0:00:32]} Kc7 {[%emt 0:00:36]} (37... Rd7 $1 $11 {remains equal.}) 38. Ra1 {[%emt 0:00:24]} Rd7 {[%emt 0:00:17]} 39. g3 {[%emt 0:00:35]} (39. h4 $16) 39... Kd6 $2 {[%emt 0:01:19]} ({Black should play} 39... Kd8 $14) 40. Rd2+ $18 {[%emt 0:00:30]} Ke7 {[%emt 0:00:20]} 41. Rda2 {[%emt 0:30:14]} (41. Rxd7+ $18 Kxd7 42. f4) 41... c5 $11 {[%emt 0:30:28]} 42. f4 {[%emt 0:00:00]} exf4+ {[%emt 0:00:00]} 43. gxf4 {[%emt 0:00:00] Weighted Error Value: White=0.18 (very precise) /Black=0.24 (precise) .  Loses game:     	---       	Black=1      Missed win:     	White=1     	---        Mistake:       	White=3     	Black=3      OK:         	White=13    	Black=17     Best:        	White=1     	---        Strong:       	White=2     	---} 1/2-1/2

[Event "45th FIDE Olympiad 2024"]
[Site "Budapest"]
[Date "2024.09.14"]
[Round "4.16"]
[White "Linn Phone Myat"]
[Black "Mejias Nunez, Rafael E."]
[Result "1/2-1/2"]
[ECO "C55"]
[WhiteElo "1763"]
[BlackElo "2026"]
[PlyCount "113"]
[EventDate "2024.09.05"]
[EventType "team-tourn"]
[EventCountry "HUN"]
[WhiteTeam "Myanmar"]
[BlackTeam "Puerto Rico"]
[WhiteTeamCountry "MYA"]
[BlackTeamCountry "PUR"]
[TimeControl "40/5400+30:1800+30"]

1. e4 e5 2. Nf3 Nf6 3. Bc4 Nxe4 4. Nc3 Nc6 5. O-O Nd6 6. Bd5 Be7 7. Re1 e4 8. Nxe4 Nxe4 9. Rxe4 O-O 10. d3 Nb4 11. Bb3 d5 12. Re1 Bg4 13. h3 Bxf3 14. Qxf3 c6 15. c3 Na6 16. d4 Bd6 17. Bd2 Nc7 18. Bc2 Re8 19. Qf5 g6 20. Qg4 Rxe1+ 21. Rxe1 Qf8 22. h4 Re8 23. Rxe8 Nxe8 24. Bg5 f5 25. Qe2 Ng7 26. c4 Qe8 27. Qxe8+ Nxe8 28. cxd5 cxd5 29. Bb3 Nc7 30. Bd8 Kg7 31. Bxc7 Bxc7 32. g3 Bb6 33. Bxd5 Bxd4 34. Bxb7 Bxb2 35. f4 Kf6 36. Bd5 h6 37. Kg2 g5 38. hxg5+ hxg5 39. fxg5+ Kxg5 40. Kf3 Be5 41. Be6 Kf6 42. Bc8 Kg5 43. Bd7 Kf6 44. Bc8 Bd6 45. g4 fxg4+ 46. Kxg4 Ke5 47. Kf3 Kd4 48. Be6 a5 49. a4 Kc3 50. Bd7 Kb4 51. Ke4 Bf8 52. Kd5 Bg7 53. Bb5 Bf8 54. Be8 Bg7 55. Bb5 Bf8 56. Be8 Bg7 57. Bb5 1/2-1/2